fUSD/lending_fUSD_20240301
["ID","MTS","AMOUNT","RATE_DAILY","PERIOD"]
[316002592,1709321444550,-500.0,0.00022136,2]
[316002593,1709321444559,-789.38,0.00022136,2]
[316002594,1709321444568,-500.0,0.00022136,2]
[316002595,1709321444577,-500.0,0.00022136,2]
[316002596,1709321444586,-500.0,0.00022136,2]
[316002597,1709321444595,-1748.32,0.00022136,2]
[316002598,1709321444604,-500.0,0.00022136,2]
[316002599,1709321444613,-876.05,0.00022136,2]
[316002600,1709321444622,-500.0,0.00022136,2]
[316002601,1709321444631,-500.0,0.00022136,2]
[316002602,1709321444642,-500.0,0.00022136,2]
[316002603,1709321444650,-500.0,0.00022136,2]
[316002604,1709321444660,-371.45666825,0.00022136,2]
[316002605,1709321444669,-500.0,0.00022136,2]
[316002606,1709321444678,-366.36082094,0.00022136,2]
[316002607,1709321444687,-500.0,0.00022136,2]
[316002608,1709321444697,-500.0,0.00022136,2]
[316002609,1709321444707,-583.56,0.00022136,2]
[316002610,1709321444716,-712.63,0.00022136,2]
[316002611,1709321444726,-500.0,0.00022136,2]
[316002612,1709321444736,-171.54049358,0.00022136,2]
[316002613,1709321444746,-500.0,0.00022136,2]
[316002614,1709321444756,-500.0,0.00022136,2]
[316002615,1709321444765,-2173.05,0.00022136,2]
[316002616,1709321444775,-500.0,0.00022136,2]
[316002617,1709321444784,-606.66,0.00022136,2]
[316002618,1709321444793,-500.0,0.00022136,2]
[316002619,1709321444802,-312.55,0.00022136,2]
[316002620,1709321444811,-500.0,0.00022136,2]
[316002621,1709321444820,-500.0,0.00022136,2]
[316002622,1709321444829,-500.0,0.00022136,2]
[316002623,1709321444838,-500.0,0.00022136,2]
[316002624,1709321444848,-500.0,0.00022136,2]
[316002625,1709321444857,-1520.25,0.00022136,2]
[316002626,1709321444866,-2063.03,0.00022136,2]
[316002627,1709321444875,-500.0,0.00022136,2]
[316002628,1709321444885,-500.0,0.00022136,2]
[316002629,1709321444894,-500.0,0.00022136,2]
[316002630,1709321444904,-500.0,0.00022136,2]
[316002631,1709321444916,-991.7,0.00022136,2]
[316002632,1709321444925,-426.19651086,0.00022136,2]
[316002633,1709321444934,-500.0,0.00022136,2]
[316002634,1709321444943,-1379.56,0.00022136,2]
[316002635,1709321444954,-500.0,0.00022136,2]
[316002636,1709321444963,-500.0,0.00022136,2]
[316002637,1709321444973,-638.22735863,0.00022136,2]
[316002638,1709321444982,-532.91862011,0.00022136,2]
[316002639,1709321444992,-500.0,0.00022136,2]
[316002640,1709321445001,-500.0,0.00022136,2]
[316002641,1709321445011,-500.0,0.00022136,2]
[316002642,1709321445020,-500.0,0.00022136,2]
[316002643,1709321445029,-500.0,0.00022136,2]
[316002644,1709321445038,-500.0,0.00022136,2]
[316002645,1709321445047,-1496.79,0.00022136,2]
[316002646,1709321445056,-500.0,0.00022136,2]
[316002647,1709321445066,-500.0,0.00022136,2]
[316002648,1709321445075,-500.0,0.00022136,2]
[316002649,1709321445084,-500.0,0.00022136,2]
[316002650,1709321445093,-969.3,0.00022136,2]
[316002651,1709321445103,-866.1,0.00022136,2]
[316002652,1709321445112,-500.0,0.00022136,2]
[316002653,1709321445121,-500.0,0.00022136,2]
[316002654,1709321445129,-500.0,0.00022136,2]
[316002655,1709321445140,-500.0,0.00022136,2]
[316002656,1709321445148,-500.0,0.00022136,2]
[316002657,1709321445157,-562.46,0.00022136,2]
[316002658,1709321445166,-500.0,0.00022136,2]
[316002659,1709321445175,-500.0,0.00022136,2]
[316002660,1709321445184,-500.0,0.00022136,2]
[316002661,1709321445193,-577.25,0.00022136,2]
[316002662,1709321445202,-500.0,0.00022136,2]
[316002663,1709321445212,-500.0,0.00022136,2]
[316002664,1709321445221,-500.0,0.00022136,2]
[316002665,1709321445230,-1848.58,0.00022136,2]
[316002666,1709321445239,-500.0,0.00022136,2]
[316002667,1709321445249,-500.0,0.00022136,2]
[316002668,1709321445259,-500.0,0.00022136,2]
[316002669,1709321445268,-737.27,0.00022136,2]
[316002670,1709321445277,-500.0,0.00022136,2]
[316002671,1709321445287,-588.99,0.00022136,2]
[316002672,1709321445296,-500.0,0.00022136,2]
[316002673,1709321445305,-500.0,0.00022136,2]
[316002674,1709321445315,-500.0,0.00022136,2]
[316002675,1709321445324,-500.0,0.00022136,2]
[316002676,1709321445333,-4200.03,0.00022136,2]
[316002677,1709321445342,-150.48043611,0.00022136,2]
[316002678,1709321445351,-500.0,0.00022136,2]
[316002679,1709321445361,-500.0,0.00022136,2]
[316002680,1709321445370,-2173.2,0.00022136,2]
[316002681,1709321445379,-500.0,0.00022136,2]
[316002682,1709321445388,-500.0,0.00022136,2]
[316002683,1709321445398,-519.46,0.00022136,2]
[316002684,1709321445406,-214.46,0.00022136,2]
[316002685,1709321445415,-500.0,0.00022136,2]
[316002686,1709321445424,-500.6,0.00022136,2]
[316002687,1709321445433,-500.0,0.00022136,2]
[316002688,1709321445442,-500.0,0.00022136,2]
[316002689,1709321445452,-5392.93,0.00022136,2]
[316002690,1709321445461,-500.0,0.00022136,2]
[316002691,1709321445470,-1050.2,0.00022136,2]
[316002692,1709321445479,-2220.6,0.00022136,2]
[316002693,1709321445488,-429.23,0.00022136,2]
[316002694,1709321445498,-500.0,0.00022136,2]
[316002695,1709321445507,-500.0,0.00022136,2]
[316002696,1709321445516,-504.65,0.00022136,2]
[316002697,1709321445525,-169.51229989,0.00022146,2]
[316002698,1709321445535,-287.99676629,0.00022183,2]
[316002699,1709321445544,-286.96581,0.00022191,2]
[316002700,1709321445553,-616.213264,0.00022191,2]
[316002701,1709321445562,-285.90344297,0.00022192,2]
[316002702,1709321445571,-191.29067004,0.00022192,2]
[316002703,1709321445581,-737328.25798627,0.00022192,4]
[316002716,1709321445924,-500.0,0.00021917,2]
[316002717,1709321445933,-11045.16673664,0.00022192,4]
[316002718,1709321445947,-239400.00000076,0.00022192,4]
[316002789,1709321446944,-203.0,0.00020021,2]
[316002791,1709321446954,-634.31,0.00021917,2]
[316002793,1709321446964,-500.0,0.00021917,2]
[316002795,1709321446973,-512.16839554,0.00021917,2]
[316002798,1709321446983,-500.0,0.00021917,2]
[316002799,1709321446993,-650.85,0.00021917,2]
[316002802,1709321447003,-509.89828714,0.00021917,2]
[316002804,1709321447013,-534.27324441,0.00021917,2]
[316002805,1709321447023,-500.0,0.00021917,2]
[316002807,1709321447032,-502.92104768,0.00021917,2]
[316002809,1709321447041,-541.07,0.00022017,3]
[316002812,1709321447052,-500.0,0.00022027,2]
[316002814,1709321447062,-634.31,0.00022027,2]
[316002816,1709321447071,-500.0,0.00022027,2]
[316002817,1709321447081,-300.06389206,0.00022027,2]
[316002822,1709321447111,-199.93610794,0.00022027,2]
[316002824,1709321447121,-650.85,0.00022027,2]
[316002826,1709321447130,-500.0,0.00022027,2]
[316002828,1709321447142,-306.65542789,0.00022093,2]
[316002830,1709321447153,-1876.10369571,0.00022093,2]
[316002832,1709321447163,-500.0,0.00022136,2]
[316002834,1709321447173,-500.0,0.00022136,2]
[316002836,1709321447182,-634.31,0.00022136,2]
[316002838,1709321447192,-500.0,0.00022136,2]
[316002840,1709321447201,-478.71068578,0.00022136,2]
[316002842,1709321447211,-650.85,0.00022136,2]
[316002844,1709321447220,-2791.61963677,0.00022192,4]
[316002847,1709321447239,-500.0,0.00022136,2]
[316002849,1709321447249,-505.090632,0.00022192,4]
[316002851,1709321447260,-53631.71871665,0.00022192,4]
[316002879,1709321447522,-500.0,0.00021917,2]
[316002881,1709321447531,-600.78652857,0.00021917,2]
[316002883,1709321447541,-500.0,0.00021917,2]
[316002885,1709321447551,-500.0,0.00022027,2]
[316002887,1709321447561,-500.0,0.00022027,2]
[316002889,1709321447570,-500.0,0.00022136,2]
[316002891,1709321447580,-13122.10907278,0.00022192,4]
[316002908,1709321447733,-500.0,0.00021917,2]
[316002910,1709321447743,-187748.54757753,0.00022192,4]
[316002920,1709321447827,-256.704,0.00022027,2]
[316002922,1709321447839,-243.296,0.00022027,2]
[316002924,1709321447848,-5430.48384529,0.00022192,4]
[316002926,1709321447860,-5988.89797761,0.00022192,4]
[316002929,1709321447871,-1576.9379362,0.00022192,4]
[316002946,1709321448026,-500.0,0.00021917,2]
[316002948,1709321448035,-500.0,0.00022136,2]
[316002950,1709321448044,-4570.5798767,0.00022192,4]
[316002952,1709321448056,-512.16850745,0.00022192,4]
[316002955,1709321448073,-529.73999,0.00022192,4]
[316002957,1709321448084,-5358.75340001,0.00022192,4]
[316002959,1709321448096,-792.29386324,0.00022192,4]
[316002960,1709321448107,-2123.85659371,0.00022192,4]
[316002961,1709321448119,-480.95,0.00022192,4]
[316002962,1709321448130,-376.7481176,0.00022192,4]
[316002965,1709321448153,-972.65576245,0.00022192,4]
[316002968,1709321448165,-2675.95,0.00022192,4]
[316002971,1709321448186,-3392.35337584,0.00022192,4]
[316002973,1709321448198,-346.74620445,0.00022192,4]
[316002976,1709321448210,-1339.26328638,0.00022192,4]
[316002978,1709321448222,-2341.86313696,0.00022192,4]
[316002980,1709321448234,-11201.54179937,0.00022192,4]
[316002982,1709321448245,-567.90811148,0.00022192,4]
[316002984,1709321448257,-1011.99388521,0.00022192,4]
[316003001,1709321448527,-224.76946192,0.00021917,2]
[316003002,1709321448537,-2873.68053808,0.00022192,4]
[316003003,1709321448549,-3080.81761525,0.00022192,4]
[316003004,1709321448572,-500.0,0.00021917,2]
[316003005,1709321448582,-500.0,0.00021917,2]
[316003006,1709321448592,-1974.3387,0.00022192,4]
[316003007,1709321461827,776.65,0.00017915,2]
[316003008,1709321674926,777.58274701,0.00017378,2]
[316003009,1709321690939,777.58274701,0.00017378,2]
[316003010,1709321706150,405.12061119,0.00016857,2]
[316003011,1709321740926,405.12061119,0.00016351,2]
[316003012,1709321762934,405.12061119,0.00016351,2]
[316003013,1709321783255,405.12061119,0.00016351,2]
[316003014,1709321803254,405.12061119,0.0001586,2]
[316003015,1709321819257,405.12061119,0.0001586,2]
[316003016,1709321839270,405.12061119,0.0001586,2]
[316003017,1709321865264,405.12061119,0.00015384,2]
[316003018,1709321889491,405.12061119,0.00015384,2]
[316003019,1709321911486,549.00049131,0.00014922,2]
[316003020,1709321980940,779.95,0.00018399,2]
[316003021,1709322158142,151.0,0.0002665,120]
[316003022,1709322428309,856.79,0.00018212,2]
[316003023,1709322468989,255.7640188,0.00018212,2]
[316003024,1709322476173,175.22881727,0.00018212,2]
[316003025,1709322487000,170.50934586,0.00018212,2]
[316003026,1709322494220,155.0,0.00018212,2]
[316003027,1709322504981,155.0,0.00018212,2]
[316003028,1709322512216,155.0,0.00018212,2]
[316003029,1709322528989,155.0,0.00018212,2]
[316003030,1709322536185,155.0,0.00018212,2]
[316003031,1709322544982,155.0,0.00018212,2]
[316003032,1709322554114,-218.31354777,0.0001874,2]
[316003033,1709322554135,-1234.29040084,0.00018836,2]
[316003034,1709322554157,-251.9698705,0.00018837,2]
[316003035,1709322554177,-1922.46348175,0.00018837,2]
[316003036,1709322558172,155.0,0.00018212,2]
[316003037,1709322560995,155.0,0.00018212,2]
[316003038,1709322568100,-31.92200081,0.00018837,2]
[316003039,1709322568120,-283.0,0.0001884,2]
[316003040,1709322568141,-200.0,0.00019795,2]
[316003041,1709322568163,-1367.22,0.00019811,2]
[316003042,1709322568184,-283.0,0.0001987,2]
[316003043,1709322568203,-923.75,0.00019917,2]
[316003044,1709322568228,-300.0,0.00019948,2]
[316003045,1709322568484,-2647.82809919,0.00019949,2]
[316003046,1709322574476,178.26461199,0.00018212,2]
[316003047,1709322578990,27.75792822,0.00018837,2]
[316003052,1709322632005,-127.24207178,0.00018837,2]
[316003053,1709322632015,-204.0,0.00019353,2]
[316003054,1709322632025,-1302.92365504,0.00019667,2]
[316003055,1709322632034,-1033.59,0.00019914,2]
[316003056,1709322632043,-153.23,0.00019937,2]
[316003057,1709322632052,-9143.11190081,0.00019949,2]
[316003058,1709322632061,-1080.90237237,0.00019959,2]
[316003059,1709322632116,-4022.02762763,0.00019959,2]
[316003060,1709322632125,-550.0,0.0002,3]
[316003061,1709322632135,-320.90509116,0.0002,2]
[316003062,1709322632144,-612.22801672,0.0002,2]
[316003063,1709322632153,-274.21925412,0.00020019,2]
[316003064,1709322632162,-4804.17,0.00020022,2]
[316003065,1709322632172,-11447.72,0.00020052,2]
[316003066,1709322632181,-276.6,0.00020062,2]
[316003067,1709322632190,-250.0,0.00020129,2]
[316003068,1709322632199,-150.0,0.00020137,2]
[316003069,1709322632208,-268.27,0.00020169,2]
[316003070,1709322632217,-151.33,0.00020171,2]
[316003071,1709322632228,-157.93,0.00020172,2]
[316003072,1709322632237,-1000.0,0.00020175,2]
[316003073,1709322632249,-500.0,0.00020179,2]
[316003074,1709322632259,-170.22,0.00020225,2]
[316003075,1709322632267,-157.49,0.0002028,2]
[316003076,1709322632277,-151.33,0.00020354,2]
[316003077,1709322632286,-306.0,0.00020451,2]
[316003078,1709322632297,-162.0,0.00020451,2]
[316003079,1709322632306,-856.79,0.00020476,2]
[316003080,1709322632315,-151.33,0.00020537,2]
[316003081,1709322632326,-20031.75565759,0.0002055,2]
[316003082,1709322632336,-157.49,0.00020633,2]
[316003083,1709322632345,-151.33,0.00020721,2]
[316003084,1709322632354,-499.99,0.00020865,2]
[316003085,1709322632364,-283.0,0.000209,2]
[316003086,1709322632374,-151.33,0.00020904,2]
[316003087,1709322632383,-153.23,0.00020934,2]
[316003088,1709322632393,-154.0,0.00020936,2]
[316003089,1709322632403,-1230.18,0.00020951,2]
[316003090,1709322632412,-219.69,0.0002097,2]
[316003091,1709322632422,-157.49,0.00020985,2]
[316003092,1709322632431,-169.89,0.00020998,2]
[316003093,1709322632441,-711.390726,0.00021,2]
[316003095,1709322632450,-209.87,0.00021047,2]
[316003097,1709322632460,-4910.9,0.0002105,2]
[316003099,1709322632470,-151.33,0.00021087,2]
[316003101,1709322632479,-6429.14,0.00021096,2]
[316003103,1709322632488,-306.0,0.00021136,2]
[316003105,1709322632498,-162.0,0.00021136,2]
[316003107,1709322632507,-300.0,0.00021243,2]
[316003109,1709322632516,-300.0,0.00021261,2]
[316003111,1709322632524,-300.0,0.00021268,2]
[316003113,1709322632534,-151.33,0.00021271,2]
[316003115,1709322632543,-157.49,0.00021337,2]
[316003117,1709322632552,-3286.0,0.0002137,2]
[316003119,1709322632561,-151.33,0.00021454,2]
[316003121,1709322632570,-1000.0,0.00021515,2]
[316003122,1709322632580,-15065.09931016,0.000216,3]
[316003371,1709322637990,-822.86026723,0.00020864,2]
[316003372,1709322638000,-167.97991366,0.00020864,2]
[316003373,1709322638010,-58895.04254299,0.000216,3]
[316003374,1709322638047,-4122.67428001,0.000216,3]
[316003375,1709322638060,-655.0,0.000216,3]
[316003385,1709322642873,-6708.18386684,0.000216,3]
[316003386,1709322642883,-154.0,0.00021621,2]
[316003387,1709322642893,-151.33,0.00021638,2]
[316003388,1709322642902,-169.89,0.00021698,2]
[316003389,1709322642912,-280.6024,0.00021717,2]
[316003390,1709322642921,-4993.45983496,0.00021717,2]
[316003392,1709322642934,-500.0,0.00021717,2]
[316003398,1709322643052,-349.22945785,0.00021717,2]
[316003399,1709322643065,-5457.20897741,0.00021717,2]
[316003400,1709322643118,-42.79572978,0.00021717,2]
[316003401,1709322643128,-584.2018,0.00021717,2]
[316003402,1709322643138,-277.07433166,0.00021723,2]
[316003422,1709322643661,-413.22628762,0.00021,2]
[316003432,1709322643755,-240.59468805,0.00021,2]
[316003434,1709322643765,-142.92566834,0.00021723,2]
[316003436,1709322643774,-165.84,0.00021807,2]
[316003438,1709322643783,-586.84064718,0.00021817,2]
[316003442,1709322643819,-5063.14565282,0.00021817,2]
[316003444,1709322643829,-7631.40689441,0.00021817,2]
[316003447,1709322643841,-1654.43541933,0.00021817,2]
[316003522,1709322646003,-68201.40018626,0.00021817,2]
[316003523,1709322646012,-5000.0,0.00021817,2]
[316003524,1709322646022,-11350.39314333,0.00021817,2]
[316003525,1709322646067,-651.4999999,0.00021817,2]
[316003526,1709322646184,-17585.56755677,0.00021817,2]
[316003527,1709322646194,-2418.251,0.00021817,2]
[316003528,1709322646204,-151.33,0.00021821,2]
[316003529,1709322646215,-306.0,0.00021821,2]
[316003530,1709322646224,-162.0,0.00021821,2]
[316003531,1709322646238,-806.79968372,0.000219,2]
[316003532,1709322646248,-200.0,0.000219,2]
[316003533,1709322646257,-2750.0,0.000219,2]
[316003534,1709322646267,-1000.0,0.000219,2]
[316003535,1709322646277,-191.99784419,0.00021907,2]
[316003536,1709322646291,-2178.06611886,0.00021916,2]
[316003537,1709322646301,-500.0,0.00021917,2]
[316003538,1709322646312,-500.0,0.00021917,2]
[316003539,1709322646324,-500.0,0.00021917,2]
[316003540,1709322646333,-422.81118983,0.00021917,2]
[316003541,1709322646344,-500.0,0.00021917,2]
[316003542,1709322646354,-500.0,0.00021917,2]
[316003543,1709322646365,-507.16032423,0.00021917,2]
[316003544,1709322646376,-500.0,0.00021917,2]
[316003545,1709322646386,-503.12774391,0.00021917,2]
[316003546,1709322646396,-502.42449334,0.00021917,2]
[316003547,1709322646407,-500.0,0.00021917,2]
[316003548,1709322646418,-500.0,0.00021917,2]
[316003549,1709322646429,-502.96672294,0.00021917,2]
[316003550,1709322646439,-176.86533918,0.00021917,2]
[316003551,1709322646450,-500.0,0.00021917,2]
[316003552,1709322646461,-500.0,0.00021917,2]
[316003553,1709322646472,-500.0,0.00021917,2]
[316003554,1709322646486,-171.27572292,0.00021917,2]
[316003555,1709322646497,-500.0,0.00021917,2]
[316003556,1709322646508,-500.0,0.00021917,2]
[316003557,1709322646519,-500.0,0.00021917,2]
[316003558,1709322646530,-500.0,0.00021917,2]
[316003559,1709322646539,-500.0,0.00021917,2]
[316003560,1709322646549,-500.0,0.00021917,2]
[316003561,1709322646559,-500.0,0.00021917,2]
[316003562,1709322646573,-500.0,0.00021917,2]
[316003563,1709322646584,-500.0,0.00021917,2]
[316003564,1709322646594,-557.18562186,0.00021917,2]
[316003565,1709322646604,-500.0,0.00021917,2]
[316003566,1709322646615,-500.0,0.00021917,2]
[316003567,1709322646624,-500.0,0.00021917,2]
[316003568,1709322646635,-500.0,0.00021917,2]
[316003569,1709322646644,-500.0,0.00021917,2]
[316003570,1709322646654,-500.0,0.00021917,2]
[316003571,1709322646663,-500.0,0.00021917,2]
[316003572,1709322646673,-500.0,0.00021917,2]
[316003573,1709322646683,-500.0,0.00021917,2]
[316003574,1709322646692,-500.0,0.00021917,2]
[316003575,1709322646702,-500.0,0.00021917,2]
[316003576,1709322646711,-500.0,0.00021917,2]
[316003577,1709322646721,-500.0,0.00021917,2]
[316003578,1709322646732,-500.0,0.00021917,2]
[316003579,1709322646744,-500.0,0.00021917,2]
[316003580,1709322646754,-500.0,0.00021917,2]
[316003581,1709322646763,-500.0,0.00021917,2]
[316003582,1709322646772,-500.0,0.00021917,2]
[316003583,1709322646782,-626.48063644,0.00021917,2]
[316003584,1709322646791,-500.0,0.00021917,2]
[316003585,1709322646800,-500.0,0.00021917,2]
[316003586,1709322646809,-500.0,0.00021917,2]
[316003587,1709322646818,-500.0,0.00021917,2]
[316003588,1709322646828,-500.0,0.00021917,2]
[316003589,1709322646837,-547.71416792,0.00021917,2]
[316003590,1709322646847,-152.07497143,0.00021917,2]
[316003591,1709322646857,-500.0,0.00021917,2]
[316003592,1709322646867,-500.0,0.00021917,2]
[316003593,1709322646876,-500.0,0.00021917,2]
[316003594,1709322646886,-500.0,0.00021917,2]
[316003595,1709322646895,-500.0,0.00021917,2]
[316003596,1709322646905,-500.0,0.00021917,2]
[316003597,1709322646914,-500.0,0.00021917,2]
[316003598,1709322646923,-500.0,0.00021917,2]
[316003599,1709322646933,-500.0,0.00021917,2]
[316003600,1709322646943,-500.0,0.00021917,2]
[316003601,1709322646952,-500.0,0.00021917,2]
[316003602,1709322646962,-500.0,0.00021917,2]
[316003603,1709322646972,-500.0,0.00021917,2]
[316003604,1709322646983,-500.0,0.00021917,2]
[316003605,1709322646993,-500.0,0.00021917,2]
[316003606,1709322647003,-500.0,0.00021917,2]
[316003607,1709322647013,-500.0,0.00021917,2]
[316003608,1709322647023,-500.0,0.00021917,2]
[316003609,1709322647032,-500.0,0.00021917,2]
[316003610,1709322647042,-500.33947388,0.00021917,2]
[316003611,1709322647051,-500.0,0.00021917,2]
[316003612,1709322647060,-500.0,0.00021917,2]
[316003613,1709322647069,-500.0,0.00021917,2]
[316003614,1709322647079,-205.56691425,0.00021917,2]
[316003615,1709322647088,-500.0,0.00021917,2]
[316003616,1709322647097,-253.17488129,0.00021917,2]
[316003617,1709322647107,-500.0,0.00021917,2]
[316003618,1709322647116,-500.0,0.00021917,2]
[316003619,1709322647125,-500.0,0.00021917,2]
[316003620,1709322647135,-500.0,0.00021917,2]
[316003621,1709322647145,-500.0,0.00021917,2]
[316003622,1709322647154,-500.0,0.00021917,2]
[316003623,1709322647163,-500.0,0.00021917,2]
[316003624,1709322647173,-500.0,0.00021917,2]
[316003625,1709322647183,-500.0,0.00021917,2]
[316003626,1709322647193,-500.0,0.00021917,2]
[316003627,1709322647202,-500.0,0.00021917,2]
[316003628,1709322647211,-500.0,0.00021917,2]
[316003629,1709322647221,-500.0,0.00021917,2]
[316003630,1709322647233,-500.0,0.00021917,2]
[316003631,1709322647247,-500.0,0.00021917,2]
[316003632,1709322647257,-500.0,0.00021917,2]
[316003633,1709322647266,-11.9128202,0.00021917,2]
[316003634,1709322647318,-408.0,0.00021917,2]
[316003635,1709322694719,151.0,0.00026788,120]
[316003636,1709322715989,831.74059421,0.0001778,2]
[316003667,1709322853906,535.16255283,0.000135,2]
[316003668,1709322853989,284.76360493,0.000125,2]
[316003669,1709322870364,2343.16343979,0.000137,2]
[316003670,1709322871180,207.19276547,0.0001,2]
[316003671,1709322923705,771.11,0.00018321,2]
[316003672,1709322965967,204.0,0.00018353,2]
[316003675,1709323168204,151.0,0.00026927,120]
[316003676,1709323371703,73455.56136435,0.000251,120]
[316003677,1709323473217,732.55,0.00018238,2]
[316003678,1709323540754,-282.99310816,0.0001883,2]
[316003679,1709323540985,-1085.76971254,0.00018831,2]
[316003680,1709323541010,-219.63785087,0.00018837,2]
[316003681,1709323607117,-151.23858818,0.00019352,2]
[316003682,1709323745166,-163.58898799,0.00019352,2]
[316003683,1709323751124,-370.88931319,0.00019352,2]
[316003684,1709323751146,-150.0,0.00019603,2]
[316003685,1709323751168,-204.0,0.00019824,2]
[316003686,1709323751190,-218.31354776,0.000199,2]
[316003687,1709323751209,-331.15813948,0.0002,7]
[316003688,1709323751230,-351.54565306,0.0002,7]
[316003689,1709323751250,-182.81283608,0.0002,2]
[316003690,1709323751273,-550.0,0.0002,3]
[316003691,1709323751293,-612.22801672,0.0002014,2]
[316003692,1709323751312,-200.0,0.00020141,2]
[316003693,1709323751332,-276.6,0.00020144,2]
[316003694,1709323751352,-200.0,0.00020199,2]
[316003695,1709323751371,-250.0,0.00020201,2]
[316003696,1709323751390,-250.0,0.00020202,2]
[316003697,1709323751410,-911.48,0.00020217,2]
[316003698,1709323751430,-800.0,0.00020228,2]
[316003699,1709323751450,-499.99,0.0002023,2]
[316003700,1709323751471,-156.57,0.00020306,2]
[316003701,1709323751492,-300.0,0.00020366,2]
[316003702,1709323751515,-155.0,0.00020366,2]
[316003703,1709323751535,-4853.43,0.00020367,2]
[316003704,1709323751556,-156.57,0.00020419,2]
[316003705,1709323751578,-732.55,0.00020502,2]
[316003706,1709323751601,-156.57,0.00020531,2]
[316003707,1709323751622,-154.0,0.00020551,2]
[316003708,1709323751644,-156.57,0.00020644,2]
[316003709,1709323751666,-3650.68829367,0.00020669,2]
[316003722,1709323832425,-408.79186619,0.00020204,2]
[316003723,1709323832434,-2964.69771375,0.00020204,2]
[316003724,1709323832444,-443.66861213,0.00020205,2]
[316003725,1709323832453,-250.0,0.00020206,2]
[316003726,1709323832463,-150.0,0.00020462,2]
[316003727,1709323832473,-150.0,0.00020462,2]
[316003728,1709323832483,-156.00765,0.00020462,2]
[316003729,1709323832492,-356.0,0.00020551,2]
[316003730,1709323832502,-1219.27170633,0.00020669,2]
[316003731,1709323832511,-157.93,0.00020673,2]
[316003733,1709323832521,-156.57,0.00020757,2]
[316003734,1709323832530,-330.1,0.00020792,2]
[316003736,1709323832539,-302.48,0.00020822,2]
[316003738,1709323832549,-330.1,0.00020849,2]
[316003740,1709323832558,-156.57,0.0002087,2]
[316003741,1709323832568,-330.1,0.00020906,2]
[316003742,1709323832577,-499.99,0.00020906,2]
[316003743,1709323832588,-150.0,0.00020906,2]
[316003744,1709323832598,-191.66433801,0.00020917,2]
[316003745,1709323832613,-355.86,0.00020917,2]
[316003746,1709323832622,-233.40673557,0.00020917,2]
[316003747,1709323832632,-500.0,0.00020917,2]
[316003748,1709323832642,-277.04016646,0.00020917,2]
[316003749,1709323832652,-330.1,0.00020963,2]
[316003750,1709323832661,-156.57,0.00020983,2]
[316003751,1709323832672,-2480.0,0.00021,2]
[316003752,1709323832682,-330.1,0.0002102,2]
[316003753,1709323832691,-330.1,0.00021077,2]
[316003754,1709323832701,-4842.49,0.00021081,2]
[316003755,1709323832710,-156.57,0.00021096,2]
[316003756,1709323832720,-5357.61,0.00021096,2]
[316003757,1709323832729,-330.1,0.00021134,2]
[316003758,1709323832739,-330.1,0.00021191,2]
[316003759,1709323832748,-156.57,0.00021208,2]
[316003760,1709323832758,-154.0,0.00021236,2]
[316003761,1709323832768,-356.0,0.00021236,2]
[316003762,1709323832778,-330.1,0.00021248,2]